fUSD/lending_fUSD_20240920
["ID","MTS","AMOUNT","RATE_DAILY","PERIOD"]
[338617259,1726804423550,-38086.01771444,0.000128,2]
[338617260,1726804423574,-4950598.92701851,0.000128,2]
[338617262,1726804423598,-211.48,0.000128,2]
[338617264,1726804423621,-1000.0,0.000128,2]
[338617265,1726804423648,-1000.0,0.000128,2]
[338617266,1726804423670,-1000.0,0.000128,2]
[338617267,1726804423692,-1000.0,0.000128,2]
[338617268,1726804423714,-1000.0,0.000128,2]
[338617269,1726804423736,-1000.0,0.000128,2]
[338617270,1726804423759,-1000.0,0.000128,2]
[338617272,1726804423780,-1000.0,0.000128,2]
[338617274,1726804423801,-1000.0,0.000128,2]
[338617275,1726804423824,-1000.0,0.000128,2]
[338617277,1726804423846,-1000.0,0.000128,2]
[338617278,1726804423868,-1000.0,0.000128,2]
[338617279,1726804423895,-1000.0,0.000128,2]
[338617281,1726804423920,-1000.0,0.000128,2]
[338617282,1726804423942,-1000.0,0.000128,2]
[338617284,1726804423965,-677.0,0.000128,2]
[338617286,1726804423988,-2346.58216203,0.000128,2]
[338617287,1726804424009,-448.0,0.000128,2]
[338617288,1726804424030,-625.0,0.000128,2]
[338617289,1726804424051,-1549.0,0.000128,2]
[338617290,1726804424074,-1262.0,0.000128,2]
[338617291,1726804424095,-809.0,0.000128,2]
[338617292,1726804424116,-558.0,0.000128,2]
[338617293,1726804424143,-932.0,0.000128,2]
[338617295,1726804424169,-150.0,0.000128,2]
[338617299,1726804424554,-553.0,0.000128,2]
[338617300,1726804424575,-1903.0,0.000128,2]
[338617301,1726804424595,-3346.0,0.000128,2]
[338617302,1726804424616,-806.0,0.000128,2]
[338617303,1726804424639,-248.0,0.000128,2]
[338617304,1726804424659,-1914.0,0.000128,2]
[338617305,1726804424680,-955.59043466,0.000128,2]
[338617306,1726804424701,-150.99,0.000128,2]
[338617307,1726804424723,-150.0,0.000128,2]
[338617308,1726804424743,-5862.0,0.000128,2]
[338617310,1726804424762,-150.0,0.000128,2]
[338617311,1726804424784,-600.0,0.000128,2]
[338617313,1726804424806,-1080.0,0.000128,2]
[338617314,1726804424826,-150.0,0.000128,2]
[338617316,1726804424846,-1000.0,0.000128,2]
[338617317,1726804424866,-170.124,0.000128,2]
[338617318,1726804424887,-264.181,0.000128,2]
[338617319,1726804424909,-250.0,0.000128,2]
[338617321,1726804424928,-201.644,0.000128,2]
[338617322,1726804424950,-227.0,0.000128,2]
[338617324,1726804424970,-200.325,0.000128,2]
[338617325,1726804424992,-7309.70660934,0.000128,2]
[338617327,1726804425013,-1742.4,0.000128,2]
[338617328,1726804425035,-45301.40758599,0.000128,2]
[338617329,1726804425054,-893.66895656,0.000128,2]
[338617330,1726804425076,-410.0,0.00012804,2]
[338617331,1726804425096,-222.0,0.00012807,2]
[338617333,1726804425118,-499.99,0.00012808,2]
[338617334,1726804425140,-500.0,0.00012808,2]
[338617335,1726804425161,-225.0,0.00012849,2]
[338617337,1726804425183,-103614.99630514,0.0001287,2]
[338617339,1726804425203,-3572.08712496,0.0001287,2]
[338617340,1726804425224,-500.0,0.00012873,2]
[338617341,1726804425245,-200.53830138,0.00012873,2]
[338617342,1726804425266,-500.0,0.00012873,2]
[338617343,1726804425286,-1000.0,0.00012877,2]
[338617344,1726804425307,-1000.0,0.00012877,2]
[338617345,1726804425327,-1000.0,0.00012877,2]
[338617346,1726804425347,-1000.0,0.00012877,2]
[338617348,1726804425366,-1000.0,0.00012877,2]
[338617349,1726804425388,-1000.0,0.00012877,2]
[338617351,1726804425408,-1000.0,0.00012877,2]
[338617353,1726804425429,-1000.0,0.00012877,2]
[338617354,1726804425451,-1000.0,0.00012877,2]
[338617356,1726804425473,-1000.0,0.00012877,2]
[338617357,1726804425493,-1000.0,0.00012877,2]
[338617359,1726804425514,-1000.0,0.00012877,2]
[338617360,1726804425536,-1000.0,0.00012877,2]
[338617362,1726804425557,-1000.0,0.00012877,2]
[338617363,1726804425578,-1000.0,0.00012877,2]
[338617365,1726804425599,-1000.0,0.00012883,2]
[338617366,1726804425621,-1000.0,0.00012883,2]
[338617368,1726804425645,-1000.0,0.00012883,2]
[338617369,1726804425666,-1000.0,0.00012883,2]
[338617371,1726804425686,-1000.0,0.00012883,2]
[338617372,1726804425707,-1000.0,0.00012883,2]
[338617374,1726804425728,-1000.0,0.00012883,2]
[338617376,1726804425748,-1000.0,0.00012883,2]
[338617377,1726804425768,-1000.0,0.00012883,2]
[338617379,1726804425787,-1000.0,0.00012883,2]
[338617380,1726804425807,-1000.0,0.00012883,2]
[338617382,1726804425827,-1000.0,0.00012883,2]
[338617383,1726804425846,-1000.0,0.00012883,2]
[338617385,1726804425866,-1000.0,0.00012883,2]
[338617386,1726804425888,-1000.0,0.00012883,2]
[338617388,1726804425913,-250000.0,0.0001289,2]
[338617389,1726804425933,-229.900139,0.0001289,2]
[338617391,1726804425954,-151.0,0.0001289,2]
[338617392,1726804425974,-151.0,0.0001289,2]
[338617394,1726804425996,-151.0,0.0001289,2]
[338617395,1726804426017,-151.0,0.0001289,2]
[338617397,1726804426037,-151.0,0.0001289,2]
[338617399,1726804426056,-151.0,0.0001289,2]
[338617400,1726804426077,-151.0,0.0001289,2]
[338617402,1726804426096,-151.0,0.0001289,2]
[338617403,1726804426116,-151.0,0.0001289,2]
[338617405,1726804426138,-151.0,0.0001289,2]
[338617406,1726804426157,-151.0,0.0001289,2]
[338617408,1726804426178,-151.0,0.0001289,2]
[338617409,1726804426199,-151.0,0.0001289,2]
[338617411,1726804426220,-151.0,0.0001289,2]
[338617412,1726804426241,-151.0,0.0001289,2]
[338617413,1726804426261,-151.0,0.0001289,2]
[338617414,1726804426281,-151.0,0.0001289,2]
[338617416,1726804426301,-151.0,0.0001289,2]
[338617417,1726804426321,-151.0,0.0001289,2]
[338617418,1726804426342,-218.902334,0.0001289,2]
[338617420,1726804426363,-500.0,0.00012891,2]
[338617421,1726804426384,-28630.40278442,0.000129,2]
[338617423,1726804426409,-359.0,0.000129,2]
[338617424,1726804426430,-165.91800675,0.000129,2]
[338617426,1726804426451,-500.0,0.000129,2]
[338617427,1726804426472,-893.66895656,0.000129,2]
[338617429,1726804426493,-500.0,0.00012973,2]
[338617430,1726804426514,-156.44083246,0.00012973,2]
[338617431,1726804426534,-180.03883045,0.00012973,2]
[338617432,1726804426554,-332.84010728,0.00012973,2]
[338617434,1726804426574,-500.0,0.00012973,2]
[338617435,1726804426595,-500.0,0.00012973,2]
[338617437,1726804426616,-500.0,0.00012973,2]
[338617438,1726804426636,-232.45998184,0.00012973,2]
[338617439,1726804426657,-500.0,0.00012973,2]
[338617440,1726804426677,-303.25133725,0.00012973,2]
[338617441,1726804426699,-160.42317672,0.00012973,2]
[338617443,1726804426720,-803.8858445,0.00012991,2]
[338617444,1726804426741,-6441.0889313,0.00012991,2]
[338617445,1726804426761,-782.06504861,0.00012991,2]
[338617447,1726804426781,-14774.48307406,0.00012998,2]
[338617448,1726804426801,-151.0,0.00012998,2]
[338617449,1726804426820,-229.900139,0.00012998,2]
[338617451,1726804426840,-151.0,0.00012998,2]
[338617452,1726804426860,-151.0,0.00012998,2]
[338617454,1726804426881,-151.0,0.00012998,2]
[338617455,1726804426904,-151.0,0.00012998,2]
[338617456,1726804426925,-151.0,0.00012998,2]
[338617457,1726804426946,-151.0,0.00012998,2]
[338617458,1726804426966,-151.0,0.00012998,2]
[338617460,1726804426987,-151.0,0.00012998,2]
[338617461,1726804427007,-151.0,0.00012998,2]
[338617462,1726804427028,-151.0,0.00012998,2]
[338617463,1726804427048,-151.0,0.00012998,2]
[338617465,1726804427068,-151.0,0.00012998,2]
[338617466,1726804427089,-151.0,0.00012998,2]
[338617468,1726804427109,-151.0,0.00012998,2]
[338617469,1726804427128,-151.0,0.00012998,2]
[338617471,1726804427158,-151.0,0.00012998,2]
[338617472,1726804427178,-152.743325,0.00012998,2]
[338617473,1726804427198,-151.0,0.00012998,2]
[338617474,1726804427218,-151.0,0.00012998,2]
[338617476,1726804427241,-1734381.15574556,0.00013,2]
[338617488,1726804428092,233.091813,0.00012742,2]
[338617709,1726804445600,169.60268758,0.00022999,120]
[338617829,1726804453273,500.0,0.00022999,120]
[338617835,1726804453547,267.13913653,0.00022999,120]
[338617836,1726804453628,501.31369974,0.00022999,120]
[338617838,1726804453782,500.0,0.00022999,120]
[338617843,1726804454042,500.0,0.00022999,120]
[338617847,1726804454285,500.0,0.00022999,120]
[338617852,1726804454538,502.54698248,0.00022999,120]
[338617854,1726804454576,500.0,0.00022999,120]
[338617856,1726804454813,500.0,0.00022999,120]
[338617860,1726804455071,500.0,0.00022999,120]
[338617863,1726804455454,367.67378321,0.00022999,120]
[338617877,1726804456492,500.0,0.00022999,120]
[338617881,1726804456770,500.0,0.00022999,120]
[338617885,1726804457114,500.0,0.00022999,120]
[338617888,1726804457375,501.12065736,0.00022999,120]
[338617890,1726804457417,500.0,0.00022999,120]
[338617892,1726804457585,500.0,0.00022999,120]
[338617894,1726804457635,500.0,0.00022999,120]
[338617899,1726804457901,500.0,0.00022999,120]
[338617901,1726804457942,500.0,0.00022999,120]
[338617908,1726804458224,500.0,0.00022999,120]
[338617910,1726804458342,500.0,0.00022999,120]
[338617913,1726804458484,263.42987703,0.00022999,120]
[338617916,1726804458618,185.0378038,0.00022999,120]
[338617933,1726804459958,183649.60786846,0.000127,2]
[338617935,1726804459984,2798.89993154,0.000127,2]
[338617944,1726804460694,500.0,0.00022999,120]
[338617950,1726804461005,500.0,0.00022999,120]
[338617951,1726804461045,500.0,0.00022999,120]
[338617953,1726804461086,501.21462225,0.00022999,120]
[338617958,1726804461270,500.0,0.00022999,120]
[338617960,1726804461307,500.0,0.00022999,120]
[338617964,1726804461538,500.0,0.00022999,120]
[338617966,1726804461578,500.0,0.00022999,120]
[338617971,1726804461832,500.0,0.00022999,120]
[338617972,1726804461874,500.0,0.00022999,120]
[338617978,1726804462085,500.0,0.00022999,120]
[338617980,1726804462135,296.91535444,0.00022999,120]
[338617985,1726804462330,500.0,0.00022999,120]
[338617993,1726804462592,500.0,0.00022999,120]
[338617998,1726804462833,500.0,0.00022999,120]
[338618004,1726804463082,500.0,0.00022999,120]
[338618006,1726804463157,500.0,0.00022999,120]
[338618008,1726804463196,500.94373325,0.00022999,120]
[338618011,1726804463340,500.0,0.00022999,120]
[338618014,1726804463418,501.27385334,0.00022999,120]
[338618018,1726804463614,500.0,0.00022999,120]
[338618022,1726804463862,500.0,0.00022999,120]
[338618029,1726804464126,500.0,0.00022999,120]
[338618033,1726804464331,500.0,0.00022999,120]
[338618035,1726804464393,367.89553842,0.00022999,120]
[338618039,1726804464614,365.50354196,0.00022999,120]
[338618078,1726804467297,500.81852926,0.00022999,120]
[338618088,1726804468001,500.0,0.00022999,120]
[338618092,1726804468332,500.0,0.00022999,120]
[338618094,1726804468372,500.0,0.00022999,120]
[338618096,1726804468445,500.0,0.00022999,120]
[338618098,1726804468556,500.0,0.00022999,120]
[338618099,1726804468729,235.65456045,0.00022999,120]
[338618101,1726804468767,500.0,0.00022999,120]
[338618102,1726804468919,500.0,0.00022999,120]
[338618103,1726804468985,360.88117647,0.00022999,120]
[338618105,1726804469187,500.0,0.00022999,120]
[338618107,1726804469489,500.0,0.00022999,120]
[338618110,1726804469751,625.75019091,0.00022999,120]
[338618112,1726804469842,509.83422856,0.00022999,120]
[338618120,1726804470949,609.11015526,0.00022999,120]
[338618137,1726804473959,243.57729145,0.00022999,120]
[338618138,1726804474101,529.94681508,0.00022999,120]
[338618142,1726804474308,2535.5939,0.000127,2]
[338618143,1726804474424,1069.08,0.00022999,120]
[338618149,1726804474705,1069.08,0.00022999,120]
[338618155,1726804475001,1069.08,0.00022999,120]
[338618160,1726804475261,1069.08,0.00022999,120]
[338618167,1726804475749,1069.08,0.00022999,120]
[338618171,1726804476015,1069.08,0.00022999,120]
[338618173,1726804476258,501.1948249,0.00022999,120]
[338618175,1726804476294,1069.08,0.00022999,120]
[338618181,1726804476531,1069.08,0.00022999,120]
[338618182,1726804476568,500.0,0.00022999,120]
[338618185,1726804476813,637.00253795,0.00022999,120]
[338618186,1726804476889,1069.08,0.00022999,120]
[338618192,1726804477139,1069.08,0.00022999,120]
[338618196,1726804477411,1069.08,0.00022999,120]
[338618200,1726804477705,1069.08,0.00022999,120]
[338618204,1726804477987,1069.08,0.00022999,120]
[338618208,1726804478260,1069.08,0.00022999,120]
[338618211,1726804478527,500.0,0.00022999,120]
[338618213,1726804478570,1069.08,0.00022999,120]
[338618215,1726804478637,500.0,0.00022999,120]
[338618217,1726804478806,1069.08,0.00022999,120]
[338618219,1726804478884,500.0,0.00022999,120]
[338618223,1726804479088,1069.08,0.00022999,120]
[338618225,1726804479123,500.0,0.00022999,120]
[338618230,1726804479378,1069.08,0.00022999,120]
[338618231,1726804479411,500.0,0.00022999,120]
[338618235,1726804479636,1069.08,0.00022999,120]
[338618236,1726804479673,500.0,0.00022999,120]
[338618240,1726804479903,1069.08,0.00022999,120]
[338618242,1726804480023,500.0,0.00022999,120]
[338618245,1726804480164,1069.08,0.00022999,120]
[338618247,1726804480336,500.0,0.00022999,120]
[338618249,1726804480448,1069.08,0.00022999,120]
[338618251,1726804480628,500.0,0.00022999,120]
[338618252,1726804480812,1069.08,0.00022999,120]
[338618253,1726804480908,369.13585144,0.00022999,120]
[338618254,1726804480952,500.0,0.00022999,120]
[338618255,1726804480991,500.0,0.00022999,120]
[338618258,1726804481196,500.0,0.00022999,120]
[338618259,1726804481256,1069.17,0.00022999,120]
[338618260,1726804481292,500.0,0.00022999,120]
[338618262,1726804481476,500.0,0.00022999,120]
[338618263,1726804481553,500.0,0.00022999,120]
[338618265,1726804481743,500.0,0.00022999,120]
[338618266,1726804481815,264.11600153,0.00022999,120]
[338618268,1726804482013,500.0,0.00022999,120]
[338618269,1726804482048,500.0,0.00022999,120]
[338618271,1726804482193,500.0,0.00022999,120]
[338618272,1726804482261,500.0,0.00022999,120]
[338618273,1726804482323,500.0,0.00022999,120]
[338618274,1726804482470,500.0,0.00022999,120]
[338618275,1726804482575,500.0,0.00022999,120]
[338618277,1726804482610,222.38456932,0.00022999,120]
[338618279,1726804482721,500.0,0.00022999,120]
[338618280,1726804482826,500.0,0.00022999,120]
[338618282,1726804482969,500.0,0.00022999,120]
[338618284,1726804483108,500.0,0.00022999,120]
[338618285,1726804483215,500.0,0.00022999,120]
[338618287,1726804483359,500.0,0.00022999,120]
[338618288,1726804483489,500.0,0.00022999,120]
[338618290,1726804483636,500.0,0.00022999,120]
[338618292,1726804483835,500.0,0.00022999,120]
[338618294,1726804484108,501.83125609,0.00022999,120]
[338618295,1726804484145,500.0,0.00022999,120]
[338618296,1726804484183,500.0,0.00022999,120]
[338618297,1726804484219,500.0,0.00022999,120]
[338618299,1726804484368,500.0,0.00022999,120]
[338618300,1726804484483,567.65,0.00022999,120]
[338618301,1726804484607,500.0,0.00022999,120]
[338618303,1726804484708,800.0,0.00022999,120]
[338618307,1726804484963,500.0,0.00022999,120]
[338618308,1726804485002,500.0,0.00022999,120]
[338618310,1726804485241,500.0,0.00022999,120]
[338618312,1726804485310,500.0,0.00022999,120]
[338618315,1726804485498,500.0,0.00022999,120]
[338618317,1726804485572,428.94534958,0.00022999,120]
[338618320,1726804485757,500.0,0.00022999,120]
[338618322,1726804486011,500.0,0.00022999,120]
[338618328,1726804486264,500.0,0.00022999,120]
[338618329,1726804486567,500.0,0.00022999,120]
[338618330,1726804486612,500.79676478,0.00022999,120]
[338618332,1726804486652,500.0,0.00022999,120]
[338618336,1726804486836,500.0,0.00022999,120]
[338618338,1726804486875,500.0,0.00022999,120]
[338618339,1726804486910,500.0,0.00022999,120]
[338618341,1726804487093,500.0,0.00022999,120]
[338618342,1726804487133,500.0,0.00022999,120]
[338618343,1726804487166,500.0,0.00022999,120]
[338618346,1726804487362,500.0,0.00022999,120]
[338618348,1726804487397,500.0,0.00022999,120]
[338618349,1726804487432,500.0,0.00022999,120]
[338618352,1726804487643,534.01933588,0.00022999,120]
[338618354,1726804487679,227.99205678,0.00022999,120]
[338618355,1726804487713,343.18141496,0.00022999,120]
[338618356,1726804487813,500.0,0.00022999,120]
[338618359,1726804488068,555.96164576,0.00022999,120]
[338618364,1726804488795,500.0,0.00022999,120]
[338618365,1726804488941,363.87499695,0.00022999,120]
[338618367,1726804489674,500.0,0.00022999,120]
[338618369,1726804489710,500.0,0.00022999,120]
[338618371,1726804489932,500.0,0.00022999,120]
[338618373,1726804489969,500.0,0.00022999,120]
[338618375,1726804490236,500.0,0.00022999,120]
[338618377,1726804490271,500.0,0.00022999,120]
[338618380,1726804490498,500.0,0.00022999,120]
[338618381,1726804490534,500.0,0.00022999,120]
[338618385,1726804490764,454.61420412,0.00022999,120]
[338618386,1726804490798,500.0,0.00022999,120]
[338618388,1726804491036,307.25189303,0.00022999,120]
[338618390,1726804491113,518.68361671,0.00022999,120]
[338618392,1726804491334,500.0,0.00022999,120]
[338618395,1726804491566,2317.75,0.00022999,120]
[338618396,1726804491608,500.0,0.00022999,120]
[338618399,1726804491814,2317.75,0.00022999,120]
[338618400,1726804491854,500.0,0.00022999,120]
[338618402,1726804492092,2317.75,0.00022999,120]
[338618403,1726804492136,500.0,0.00022999,120]
[338618406,1726804492346,2317.75,0.00022999,120]
[338618407,1726804492379,500.0,0.00022999,120]
[338618411,1726804492671,2317.75,0.00022999,120]
[338618412,1726804492709,500.0,0.00022999,120]
[338618414,1726804492792,500.0,0.00022999,120]
[338618416,1726804492943,2317.75,0.00022999,120]
[338618417,1726804492986,500.0,0.00022999,120]
[338618420,1726804493085,500.0,0.00022999,120]
[338618423,1726804493206,500.0,0.00022999,120]
[338618426,1726804493360,420.01229226,0.00022999,120]
[338618428,1726804493464,500.0,0.00022999,120]
[338618431,1726804493618,2317.75,0.00022999,120]
[338618432,1726804493736,500.0,0.00022999,120]
[338618433,1726804493923,2317.75,0.00022999,120]
[338618435,1726804494018,500.0,0.00022999,120]
[338618439,1726804494169,2317.75,0.00022999,120]
[338618442,1726804494285,500.0,0.00022999,120]
[338618443,1726804494449,2317.75,0.00022999,120]
[338618446,1726804494578,500.0,0.00022999,120]
[338618447,1726804494711,2317.75,0.00022999,120]
[338618451,1726804494999,500.0,0.00022999,120]
[338618452,1726804495042,2317.75,0.00022999,120]
[338618455,1726804495273,2317.75,0.00022999,120]
[338618457,1726804495322,500.0,0.00022999,120]
[338618458,1726804495559,500.0,0.00022999,120]
[338618459,1726804495606,2317.75,0.00022999,120]
[338618460,1726804495818,278.09370092,0.00022999,120]
[338618462,1726804495871,2317.75,0.00022999,120]
[338618464,1726804496273,2317.75,0.00022999,120]
[338618465,1726804496525,2317.75,0.00022999,120]
[338618466,1726804496783,2317.75,0.00022999,120]
[338618467,1726804497055,2317.75,0.00022999,120]
[338618468,1726804497090,566.46,0.00022999,120]
[338618469,1726804497287,500.0,0.00022999,120]
[338618470,1726804497325,566.46,0.00022999,120]
[338618471,1726804497472,2317.75,0.00022999,120]
[338618472,1726804497538,603.7460706,0.00022999,120]
[338618473,1726804497590,566.46,0.00022999,120]
[338618474,1726804497732,2317.75,0.00022999,120]
[338618475,1726804498002,2317.75,0.00022999,120]
[338618476,1726804498206,566.46,0.00022999,120]
[338618477,1726804498298,2317.75,0.00022999,120]
[338618478,1726804498482,566.46,0.00022999,120]
[338618479,1726804498578,2317.88,0.00022999,120]
[338618481,1726804498771,566.46,0.00022999,120]
[338618483,1726804499025,500.0,0.00022999,120]
[338618485,1726804499147,566.46,0.00022999,120]
[338618486,1726804499201,500.0,0.00022999,120]
[338618488,1726804499416,566.46,0.00022999,120]
[338618489,1726804499462,500.0,0.00022999,120]
[338618491,1726804499734,252.59670923,0.00022999,120]
[338618493,1726804500003,247.85298008,0.00022999,120]
[338618494,1726804500048,500.0,0.00022999,120]
[338618497,1726804500367,500.0,0.00022999,120]
[338618501,1726804500644,500.0,0.00022999,120]
[338618502,1726804500699,566.46,0.00022999,120]
[338618506,1726804500906,500.0,0.00022999,120]
[338618508,1726804501001,566.46,0.00022999,120]
[338618511,1726804501199,601.22403518,0.00022999,120]
[338618512,1726804501273,566.46,0.00022999,120]
[338618516,1726804501566,566.46,0.00022999,120]
[338618519,1726804501826,566.46,0.00022999,120]
[338618523,1726804502447,566.46,0.00022999,120]
[338618525,1726804502504,566.46,0.00022999,120]
[338618530,1726804503012,500.0,0.00022999,120]
[338618532,1726804503115,566.46,0.00022999,120]
[338618534,1726804503294,500.0,0.00022999,120]
[338618536,1726804503392,566.46,0.00022999,120]
[338618537,1726804503553,500.0,0.00022999,120]
[338618538,1726804503651,566.46,0.00022999,120]
[338618540,1726804503859,500.0,0.00022999,120]
[338618541,1726804503909,566.46,0.00022999,120]
[338618544,1726804504182,566.46,0.00022999,120]
[338618547,1726804504428,500.0,0.00022999,120]
[338618548,1726804504483,566.46,0.00022999,120]
[338618551,1726804504744,566.46,0.00022999,120]
[338618552,1726804504795,593.80777758,0.00022999,120]
[338618556,1726804505050,566.46,0.00022999,120]
[338618559,1726804505312,566.49,0.00022999,120]
[338618576,1726804506373,500.0,0.00022999,120]
[338618579,1726804506522,500.0,0.00010068,2]
[338618603,1726804507934,500.0,0.00022999,120]
[338618606,1726804508284,307.08406693,0.00022999,120]
[338618627,1726804509367,156.12,0.00010959,2]
[338618633,1726804509595,515.04509073,0.00022999,120]
[338618639,1726804510189,500.0,0.00023,120]
[338618640,1726804510245,500.0,0.00022999,120]
[338618643,1726804510313,500.38200233,0.00022999,120]
[338618646,1726804510506,500.2450866,0.00022999,120]
[338618654,1726804510983,500.61239661,0.00022999,120]
[338618661,1726804511575,500.59215645,0.00022999,120]
[338618678,1726804512885,500.0,0.00022999,120]
[338618681,1726804513153,180.73703544,0.00022999,120]
[338618686,1726804513396,609.77247334,0.00022999,120]
[338618731,1726804516362,500.0,0.00022999,120]
[338618733,1726804516466,500.95813049,0.00022999,120]
[338618738,1726804516756,393.50873422,0.00022999,120]
[338618768,1726804518835,23900.0,0.00012245,2]
[338618843,1726804522811,500.0,0.00022999,120]
[338618848,1726804523057,500.0,0.00022999,120]
[338618849,1726804523100,500.0,0.00022999,120]
[338618855,1726804523321,352.45201096,0.00022999,120]
[338618857,1726804523366,500.0,0.00022999,120]
[338618861,1726804523600,500.0,0.00022999,120]
[338618864,1726804523881,219.40302088,0.00022999,120]
[338618869,1726804524659,502.3800813,0.00022999,120]
[338618870,1726804525373,500.0,0.00022999,120]
[338618872,1726804525657,271.35821413,0.00022999,120]
[338618875,1726804526404,501.06784124,0.00022999,120]
[338618879,1726804526713,500.0,0.00022999,120]
[338618882,1726804526807,500.0,0.00022999,120]
[338618884,1726804527008,278.98307074,0.00022999,120]
[338618886,1726804527100,500.0,0.00022999,120]
[338618889,1726804527412,500.0,0.00022999,120]
[338618890,1726804527534,500.0,0.00022999,120]
[338618893,1726804527705,284.36,0.00022999,120]
[338618894,1726804527796,500.0,0.00022999,120]
[338618897,1726804528066,500.0,0.00022999,120]
[338618900,1726804528297,563.81171232,0.00022999,120]
[338618901,1726804528363,500.0,0.00022999,120]
[338618905,1726804528667,520.66114556,0.00022999,120]
[338618906,1726804528782,500.0,0.00022999,120]
[338618909,1726804529057,457.68891533,0.00022999,120]
[338618928,1726804530594,295.52611014,0.00022999,120]
[338618933,1726804531102,500.0,0.00022999,120]
[338618935,1726804531147,500.0,0.00022999,120]
[338618940,1726804531402,184.68,0.00022999,120]
[338618941,1726804531442,500.0,0.00022999,120]
[338618956,1726804532754,351.44823225,0.00022999,120]
[338618958,1726804532973,500.0,0.00022999,120]
[338618964,1726804533434,152.97872068,0.00022999,120]
[338618972,1726804534606,500.0,0.00022999,120]
[338618973,1726804534838,500.92461489,0.00022999,120]
[338618974,1726804534881,501.00790965,0.00022999,120]
[338618975,1726804534923,397.53039885,0.00022999,120]
[338618976,1726804535191,500.0,0.00022999,120]
[338618977,1726804535460,544.74795988,0.00022999,120]
[338618981,1726804536359,500.0,0.00022999,120]
[338618983,1726804536667,500.0,0.00022999,120]
[338618985,1726804536944,500.0,0.00022999,120]
[338618986,1726804537202,500.0,0.00022999,120]
[338618987,1726804537442,500.0,0.00022999,120]
[338618989,1726804537713,500.0,0.00022999,120]
[338618990,1726804537840,647.01979345,0.00022999,120]
[338618991,1726804537984,526.38714835,0.00022999,120]
[338618992,1726804538029,193.75971722,0.00022999,120]
[338619002,1726804540391,500.0,0.00022999,120]
[338619003,1726804540432,500.0,0.00022999,120]
[338619005,1726804540485,167.99628552,0.00022999,120]
[338619006,1726804540563,500.0,0.00022999,120]
[338619009,1726804540856,500.0,0.00022999,120]
[338619012,1726804541172,500.0,0.00022999,120]
[338619015,1726804541482,294.6460524,0.00022999,120]